bitfinex/quotes_ETHUSD_20220220
["timestamp","ask_amount","ask_price","bid_price","bid_amount"]
[1645369493410,0.00128839,2634.7,2633.9,0.99210304]
[1645369493608,0.0038137,2634.6,2633.9,4.49210304]
[1645369493807,0.0038137,2634.6,2633.9,0.99210304]
[1645369494007,0.0038137,2634.6,2633.9,12.65210304]
[1645369494406,0.0038137,2634.6,2634.0,1.0]
[1645369494616,0.001284,2634.6,2634.0,1.0]
[1645369494810,0.0038137,2634.6,2634.0,1.0]
[1645369495209,0.0038137,2634.6,2633.9,12.95210304]
[1645369495407,0.0038137,2634.6,2634.1,11.66]
[1645369495858,0.001284,2634.6,2634.3,11.66]
[1645369496058,0.00381378,2634.6,2634.3,11.66]
[1645369496460,0.00381378,2634.6,2634.4,12.82078715]
[1645369497063,0.00381378,2634.6,2634.4,13.12078715]
[1645369497064,0.001284,2634.6,2634.4,13.12078715]
[1645369497266,0.001284,2634.6,2634.4,13.42078715]
[1645369497267,0.00382431,2634.6,2634.4,13.42078715]
[1645369497460,0.00382431,2634.6,2634.5,1.0]
[1645369497861,0.00382431,2634.6,2634.4,13.42078715]
[1645369498266,0.001284,2634.6,2634.5,12.66]
[1645369498461,0.00382431,2634.6,2634.5,12.66]
[1645369498660,0.00254031,2634.6,2634.4,1.16078715]
[1645369498862,0.00254031,2634.6,2634.4,12.82078715]
[1645369499502,0.96964506,2635.5,2634.4,12.82078715]
[1645369499703,0.00254031,2634.6,2634.4,12.82078715]
[1645369500505,0.00254031,2634.6,2634.2,11.66]
[1645369500705,1.02145928,2635.4,2634.1,5.1956]
[1645369500904,1.02145928,2635.4,2634.0,1.2365]
[1645369500905,0.00253797,2634.6,2634.0,1.2365]
[1645369501106,0.00253797,2634.6,2633.7,3.50158291]
[1645369501107,0.00253797,2634.6,2633.7,5.66558291]
[1645369501506,0.00253797,2634.6,2633.8,1.0]
[1645369502008,0.00253769,2634.6,2633.7,5.66558291]
[1645369502208,0.00253769,2634.6,2633.7,0.00158291]
[1645369502610,1.01048902,2634.2,2633.7,0.00158291]
[1645369503005,1.01048902,2634.2,2633.4,3.0784]
[1645369503453,1.01048902,2634.2,2633.7,0.00158291]
[1645369504254,1.01048902,2634.2,2633.1,0.57975171]
[1645369504654,1.01048902,2634.2,2633.7,0.00158466]
[1645369505055,1.31048902,2634.2,2633.7,0.00158466]
[1645369505451,1.31048902,2634.2,2633.1,0.57975171]
[1645369505653,1.01048902,2634.2,2633.7,0.00158466]
[1645369506653,1.01048902,2634.2,2633.1,0.57975171]
[1645369506853,1.01048902,2634.2,2633.7,0.00158466]
[1645369507913,1.01048902,2634.2,2633.1,0.57975171]
[1645369508112,1.01048902,2634.2,2633.7,0.00158427]
[1645369508911,0.00112181,2634.1,2633.7,0.00158427]
[1645369509110,0.00112181,2634.1,2633.2,1.04842271]
[1645369509312,0.00112181,2634.1,2633.7,0.00158427]
[1645369510210,0.00112181,2634.1,2633.2,1.04842271]
[1645369510609,0.00112181,2634.1,2633.7,0.00158427]
[1645369510857,0.00112181,2634.1,2633.7,0.00064226]
[1645369511459,0.00112181,2634.1,2633.2,1.04842271]
[1645369512960,0.00112181,2634.1,2633.2,2.04842271]
[1645369513359,0.00112181,2634.1,2633.2,1.04842271]
[1645369513559,0.0072023,2634.3,2633.2,2.04842271]
[1645369513761,0.0011179,2634.3,2633.2,2.04842271]
[1645369514613,0.0011179,2634.3,2633.2,1.0]
[1645369514817,1.34519895,2634.3,2633.1,0.00037971]
[1645369515013,0.96228105,2633.9,2633.1,0.00037971]
[1645369515210,0.96228105,2633.8,2633.1,0.00037971]
[1645369515409,2.28648105,2633.8,2633.6,0.00193853]
[1645369515613,0.73879502,2633.7,2633.6,0.00193853]
[1645369515811,1.03879502,2633.7,2633.6,0.00193853]
[1645369516010,0.73879502,2633.7,2633.6,0.00193853]
[1645369516211,0.73879502,2633.7,2633.1,0.00037971]
[1645369516412,1.3242,2633.8,2633.1,0.00037971]
[1645369516608,1.3242,2633.8,2633.5,0.00193859]
[1645369516609,1.1345,2633.8,2633.5,0.00193859]
[1645369517310,2.01095615,2633.8,2633.5,0.00193859]
[1645369517511,1.1345,2633.8,2633.1,0.00037971]
[1645369517711,1.1345,2633.8,2633.5,0.00193859]
[1645369518112,4.6345,2633.8,2633.5,0.00193859]
[1645369518551,4.8242,2633.8,2633.1,0.00037971]
[1645369518953,4.8242,2633.8,2633.5,0.00193859]
[1645369519953,4.8242,2633.8,2633.1,0.56469159]
[1645369520152,4.8242,2633.8,2633.5,0.00193859]
[1645369521052,4.8242,2633.8,2633.1,0.56469159]
[1645369521254,4.6345,2633.8,2633.5,0.00193859]
[1645369521553,1.1345,2633.8,2633.5,0.00193859]
[1645369521753,4.6345,2633.8,2633.5,0.00193859]
[1645369522208,4.6345,2633.8,2633.1,0.56469159]
[1645369522607,1.1345,2633.8,2633.5,0.00193859]
[1645369523319,0.14181708,2634.2,2633.5,0.00193859]
[1645369523512,0.00112571,2634.2,2633.2,15.16]
[1645369523708,0.00124445,2633.7,2633.6,1.15452961]
[1645369525758,0.00124445,2633.7,2633.6,2.15452961]
[1645369526159,0.0060844,2634.4,2633.7,0.00162098]
[1645369526160,0.00264506,2634.2,2633.7,0.00162098]
[1645369526562,0.00264506,2634.2,2633.7,0.30162098]
[1645369526960,0.00264506,2634.2,2633.7,0.00162098]
[1645369527160,2.783,2634.5,2634.1,1.17163594]
[1645369527361,0.00264529,2634.2,2634.1,1.17163594]
[1645369528466,0.96228105,2634.9,2634.1,12.83163594]
[1645369528467,0.0060844,2634.8,2634.1,12.83163594]
[1645369528663,0.00264538,2634.3,2634.1,12.83163594]
[1645369529067,0.00264538,2634.3,2634.2,12.66]
[1645369529523,0.0060844,2635.1,2634.2,12.66]
[1645369529707,0.01057867,2635.1,2634.7,1.14705673]
[1645369529909,0.01057867,2635.1,2634.2,11.66]
[1645369530108,0.01057867,2635.1,2634.3,11.66]
[1645369530810,2.8453,2635.2,2634.3,11.66]
[1645369531019,0.00257986,2634.8,2634.2,0.9279613]
[1645369531711,0.00257986,2634.8,2633.8,1.1296]
[1645369531913,0.96228105,2634.9,2633.7,0.00162098]
[1645369532111,0.0025799,2634.6,2633.7,11.66162098]
[1645369532311,0.0025799,2634.6,2633.7,0.00162098]
[1645369532816,0.0025799,2634.6,2633.7,1.00162098]
[1645369533011,0.0060844,2634.8,2634.0,1.07984688]
[1645369533253,0.1897,2635.0,2634.0,1.07984688]
[1645369533254,1.15806545,2635.0,2634.0,1.07984688]
[1645369533559,0.00257997,2634.3,2634.0,1.07984688]
[1645369534259,0.96836545,2634.9,2634.0,1.07984688]
[1645369534454,0.96228105,2634.9,2634.0,1.07984688]
[1645369534654,0.00253573,2634.3,2634.0,1.07984688]
[1645369535456,0.96228105,2634.8,2634.0,1.07984688]
[1645369535857,0.00253573,2634.3,2633.7,1.00162098]
[1645369536258,0.00253573,2634.3,2633.7,0.00162098]
[1645369536659,0.1897,2634.6,2633.7,0.00162098]
[1645369537120,0.00253568,2634.2,2633.7,0.00162098]
[1645369537915,0.0060844,2634.6,2633.7,0.00162098]
[1645369538116,0.00253914,2634.2,2633.7,0.00162098]
[1645369539013,0.96836545,2634.6,2633.7,0.00162098]
[1645369539215,0.96228105,2634.6,2633.7,0.00162098]
[1645369539414,0.00253914,2634.2,2633.9,0.84253358]
[1645369539617,0.00253914,2634.2,2633.7,0.00162098]
[1645369540016,0.00253914,2634.2,2633.7,5.00162098]
[1645369540220,0.01015328,2635.1,2633.7,5.00162098]
[1645369540221,0.0060844,2634.7,2633.9,11.66]
[1645369540415,0.0060844,2634.8,2633.9,11.66]
[1645369540614,0.00253914,2634.2,2634.1,11.66]
[1645369540863,0.00253914,2634.2,2634.1,14.32376779]
[1645369541065,0.00253914,2634.2,2634.1,15.93743253]
[1645369541465,2.8513844,2635.2,2634.1,15.93743253]
[1645369541664,0.01015075,2635.1,2634.7,1.18816901]
[1645369541863,0.01015075,2635.1,2634.3,11.66]
[1645369542266,0.01015075,2635.1,2634.4,1.0]
[1645369542664,2.8453,2635.2,2634.4,1.0]
[1645369542863,0.00253834,2634.9,2634.4,1.0]
[1645369543064,0.00253834,2634.9,2634.4,12.66]
[1645369543264,0.00253834,2634.9,2634.4,11.66]
[1645369543864,2.8453,2635.2,2634.5,0.97384456]
[1645369544068,2.85545189,2635.2,2634.9,1.06936597]
[1645369544265,0.01015189,2635.2,2634.5,1.0]
[1645369544708,0.01015189,2635.2,2634.4,1.3]
[1645369544911,0.01015189,2635.2,2634.4,0.3]
[1645369545117,4.5515,2635.4,2634.3,12.26]
[1645369545314,0.0025385,2634.9,2634.4,1.0]
[1645369545511,0.0025385,2634.9,2634.7,0.92386022]
[1645369546313,0.0060844,2635.4,2634.7,0.92386022]
[1645369546617,0.0025385,2634.9,2634.7,0.92386022]
[1645369547413,0.0060844,2635.5,2634.7,0.92386022]
[1645369547613,1.01228105,2635.6,2634.3,13.26]
[1645369547814,0.0025385,2634.9,2634.3,13.26]
[1645369548258,0.0025385,2634.9,2634.5,11.66]
[1645369548461,0.0025385,2634.9,2634.6,1.0]
[1645369548659,0.0060844,2635.5,2634.7,12.76188762]
[1645369548859,0.0560844,2635.6,2635.2,0.90599013]
[1645369549059,0.05,2635.6,2635.2,0.90599013]
[1645369549458,0.05,2635.6,2634.6,0.6]
[1645369549659,0.05,2635.6,2634.2,11.66]
[1645369549859,0.05,2635.6,2633.8,11.77325167]
[1645369549860,0.0560844,2635.6,2634.4,11.66]
[1645369550060,0.96228105,2635.4,2634.4,11.65857721]
[1645369550263,0.05,2635.6,2634.4,16.65857721]
[1645369550460,0.05,2635.6,2634.7,11.65857721]
[1645369550660,0.05,2635.6,2635.1,1.12165495]
[1645369552514,0.00261054,2635.5,2635.1,1.12165495]
[1645369552911,0.00261054,2635.5,2634.6,0.57522861]
[1645369553110,0.00261054,2635.5,2634.6,11.96]
[1645369553312,0.00261054,2635.5,2634.6,12.26]
[1645369553512,0.05,2635.6,2634.6,12.26]
[1645369553513,0.05,2635.6,2634.7,1.0]
[1645369553913,0.0026106,2635.2,2634.6,0.6]
[1645369554315,0.0026106,2635.2,2634.8,0.87927131]
[1645369554714,3.55,2635.6,2634.8,0.87927131]
[1645369554917,0.00261061,2635.1,2634.3,1.2208]
[1645369555114,0.00261061,2635.1,2634.1,11.66]
[1645369555514,0.00261061,2635.1,2634.1,11.65352001]
[1645369555953,4.6882844,2635.6,2634.1,11.65352001]
[1645369556153,0.00251828,2634.7,2634.3,11.65352001]
[1645369556353,0.00251828,2634.7,2634.4,20.24542001]
[1645369556655,4.6882844,2635.6,2634.4,20.24542001]
[1645369556656,4.5508743,2635.6,2634.4,20.24542001]
[1645369556852,1.1322,2635.6,2634.4,20.24542001]
[1645369557253,1.1322,2635.6,2635.1,1.13125818]
[1645369557454,0.1897,2635.7,2634.5,15.15352001]
[1645369557653,0.1957844,2635.7,2634.5,11.65352001]
[1645369557854,0.1897,2635.7,2634.6,12.65352001]
[1645369558057,0.1897,2635.7,2634.7,1.0]
[1645369558355,0.1897,2635.7,2634.7,12.65352001]
[1645369558557,0.0130844,2635.8,2635.1,0.84848139]
[1645369558756,0.00527145,2635.8,2635.1,0.84848139]
[1645369559156,0.09347142,2635.9,2635.1,0.84848139]
[1645369560910,0.00264183,2635.6,2635.1,0.84848139]
[1645369561615,0.00264183,2635.6,2635.1,12.50848139]
[1645369561812,0.09347142,2635.9,2635.2,12.66]
[1645369562013,6.5112,2636.1,2635.2,1.0]
[1645369562217,0.00264186,2635.5,2635.2,1.0]
[1645369562412,0.00264186,2635.5,2635.3,0.8580616]
[1645369562812,0.00264186,2635.5,2634.8,18.06406914]
[1645369563012,2.13356545,2636.1,2634.8,18.3621]
[1645369563262,2.13356545,2636.1,2634.8,18.6621]
[1645369563466,0.00120142,2635.8,2634.8,18.6621]
[1645369563661,0.00264185,2635.5,2634.8,18.66406914]
[1645369564064,0.00264185,2635.5,2634.8,7.00406914]
[1645369564262,0.00120142,2635.8,2635.3,0.5]
[1645369565770,0.00264182,2635.7,2635.3,0.5]
[1645369566663,0.00120142,2635.8,2635.4,1.14467367]
[1645369566865,0.00264183,2635.6,2635.4,1.14467367]
[1645369567925,0.00120142,2635.8,2635.4,1.14467367]
[1645369568328,0.00264183,2635.6,2635.4,1.14467367]
[1645369569129,0.96347808,2636.0,2635.4,1.14467367]
[1645369569327,0.00264183,2635.6,2635.4,1.14467367]
[1645369570328,1.1652,2636.1,2635.4,1.14467367]
[1645369570530,0.00264183,2635.6,2635.4,1.14467367]
[1645369571563,1.1652,2636.1,2635.4,1.14467367]
[1645369571765,0.00264183,2635.6,2635.4,1.14467367]
[1645369572669,1.1652,2636.1,2635.4,1.14467367]
[1645369572866,1.1652,2636.1,2635.4,0.5]
[1645369573070,0.00264183,2635.6,2635.4,0.5]
[1645369573469,0.0050366,2635.5,2635.4,0.5]
[1645369574068,0.0050366,2635.5,2635.4,1.38106251]
[1645369575722,0.0050366,2635.5,2635.4,13.04106251]
[1645369575921,0.0050366,2635.5,2635.4,1.98106251]
[1645369576120,0.0050366,2635.5,2635.4,2.98106251]
[1645369576322,0.0050366,2635.5,2635.4,14.64106251]
[1645369576521,0.0050366,2635.5,2635.4,1.98106251]
[1645369576720,0.0050366,2635.5,2635.4,2.98106251]
[1645369576921,0.0050366,2635.5,2635.4,1.98106251]
[1645369577118,0.0050366,2635.5,2635.4,2.98106251]
[1645369577320,0.0050366,2635.5,2635.4,1.98106251]
[1645369577621,0.0050366,2635.5,2635.4,2.98106251]
[1645369577923,0.0050366,2635.5,2635.4,1.98106251]
[1645369578119,0.0050366,2635.5,2635.4,2.98106251]
[1645369578362,0.0050366,2635.5,2635.4,1.98106251]
[1645369578564,0.0050366,2635.5,2635.4,2.98106251]
[1645369578961,0.0050366,2635.5,2635.4,1.98106251]
[1645369579162,0.0050366,2635.5,2635.4,2.98106251]
[1645369579362,0.0050366,2635.5,2635.4,1.98106251]
[1645369579563,0.0050366,2635.5,2635.4,2.98106251]
[1645369579963,0.0050366,2635.5,2635.4,1.98106251]
[1645369580262,0.0050366,2635.5,2635.4,2.98106251]
[1645369580468,0.0050366,2635.5,2635.4,1.38106251]
[1645369581465,0.0050366,2635.5,2635.4,1.37674491]
[1645369582112,0.0050366,2635.5,2635.4,1.67674491]
[1645369582311,0.0050366,2635.5,2635.4,1.37674491]
[1645369582713,0.96569385,2635.5,2635.4,1.37674491]
[1645369582913,0.0050366,2635.5,2635.4,1.37674491]
[1645369583117,0.0050366,2635.5,2635.4,13.03674491]
[1645369583312,0.0050366,2635.5,2635.4,14.63674491]
[1645369584413,0.01055281,2636.0,2635.6,0.01658008]
[1645369584812,0.09347142,2636.4,2635.6,1.01658008]
[1645369585015,1.05412867,2636.4,2635.6,12.67658008]
[1645369585214,0.96065725,2636.3,2635.6,12.27658008]
[1645369585416,1.05412867,2636.4,2635.7,1.0]
[1645369585613,1.05412867,2636.4,2635.7,12.66]
[1645369585865,1.0562655,2636.4,2635.7,12.66]
[1645369586261,0.96279408,2636.3,2635.7,1.0]
[1645369586458,0.96279408,2636.3,2635.6,0.61658008]
[1645369586659,1.0562655,2636.4,2635.6,0.61658008]
[1645369586859,1.0562655,2636.4,2635.6,0.31658008]
[1645369587058,1.0562655,2636.4,2635.7,11.66]
[1645369587462,1.0562655,2636.4,2635.8,1.0]
[1645369587660,1.0562655,2636.4,2635.6,0.01658008]
[1645369587861,1.0562655,2636.4,2635.6,1.01658008]
[1645369588060,1.0562655,2636.4,2635.6,1.31658008]
[1645369588061,0.96279408,2636.3,2635.6,1.31658008]
[1645369588261,0.96279408,2636.3,2635.6,1.61658008]
[1645369588661,0.00263847,2636.1,2635.6,1.61658008]
[1645369588864,0.00263847,2636.1,2635.6,13.27658008]
[1645369589064,0.00426722,2636.4,2635.6,12.27658008]
[1645369589262,0.00426722,2636.4,2635.7,1.0]
[1645369589529,0.00426722,2636.4,2635.6,11.97658008]
[1645369589710,0.00426722,2636.4,2635.6,12.27658008]
[1645369589911,0.00426722,2636.4,2635.7,12.66]
[1645369592614,0.00426722,2636.4,2635.7,1.0]
[1645369592819,3.50426722,2636.4,2635.6,0.61658008]
[1645369593016,4.4670613,2636.4,2635.6,0.61658008]
[1645369593260,0.9670613,2636.4,2635.6,0.01658008]
[1645369593459,0.00263837,2636.2,2635.6,0.01658008]
[1645369594362,0.96663662,2636.3,2635.6,0.01658008]
[1645369594560,0.0026383,2636.2,2635.6,0.01658008]
[1645369595163,0.0026383,2636.2,2635.6,11.67658008]
[1645369595364,0.0026383,2636.2,2635.8,11.66]
[1645369595562,0.00384254,2636.3,2635.8,11.96]
[1645369595762,0.00384254,2636.3,2635.9,1.0]
[1645369595962,0.0026383,2636.2,2635.9,1.0]
[1645369596165,0.0026383,2636.2,2635.8,12.96]
[1645369596562,0.0026383,2636.2,2635.8,12.95624]
[1645369596765,0.00384254,2636.3,2635.8,12.95624]
[1645369597014,0.00263837,2636.2,2635.8,12.95624]
[1645369598015,0.00384254,2636.3,2635.8,12.95624]
[1645369598316,0.00263837,2636.2,2635.6,0.01658008]
[1645369598920,0.00369518,2636.1,2635.6,0.01658008]
[1645369599816,0.50882003,2636.0,2635.6,0.01658008]
[1645369600016,0.00369518,2636.1,2635.6,0.01658008]
[1645369601059,0.95398091,2636.1,2635.6,0.01658008]
[1645369601264,1.91677499,2636.1,2635.6,0.01658008]
[1645369602061,0.96648926,2636.1,2635.6,0.01658008]
[1645369602463,0.00369518,2636.1,2635.6,0.01658008]
[1645369603264,0.00369518,2636.1,2635.7,1.61289132]
[1645369603670,0.00369518,2636.1,2635.7,1.91289132]
[1645369603671,0.00728044,2636.1,2635.7,1.91289132]
[1645369603871,0.00728044,2636.1,2635.7,0.3]
[1645369604064,0.00728044,2636.1,2635.6,12.97658008]
[1645369604265,0.00728044,2636.1,2635.7,1.61286587]
[1645369604712,0.00728044,2636.1,2635.6,0.01658008]
[1645369605718,0.00728044,2636.1,2635.7,1.61288201]
[1645369605914,0.00728044,2636.1,2635.8,11.66]
[1645369606117,0.00728044,2636.1,2635.7,1.0]
[1645369606314,0.00728044,2636.1,2635.7,0.3]
[1645369606717,0.00728044,2636.1,2635.7,1.0]
[1645369606915,0.00728044,2636.1,2635.6,0.61658008]
[1645369607113,0.00728044,2636.1,2635.6,0.31658008]
[1645369607512,0.00728044,2636.1,2635.6,0.01658008]
[1645369608115,0.88282248,2636.4,2635.6,0.01658008]
[1645369608359,2.64074545,2636.6,2635.6,0.01658008]
[1645369608360,2.63466105,2636.6,2635.6,0.01658008]
[1645369608558,1.19153867,2636.6,2635.6,0.01658008]
[1645369608759,2.62412238,2636.6,2635.6,0.01658008]
[1645369609067,0.00356491,2636.0,2635.7,1.61287613]
[1645369609659,0.00356491,2636.0,2635.7,0.86795724]
[1645369610961,0.00356491,2636.0,2635.6,0.31658008]
[1645369611161,0.00356491,2636.0,2635.6,0.01658008]
[1645369611763,0.36649095,2635.9,2635.6,0.01658008]
[1645369613738,0.36966799,2635.9,2635.6,0.01658008]
[1645369617163,1.33392916,2635.9,2635.6,0.01658008]
[1645369617363,0.96426117,2635.8,2635.6,0.01658008]
[1645369618165,0.96426117,2635.7,2635.6,0.01658008]
[1645369618766,1.33392916,2635.9,2635.6,0.01658008]
[1645369619816,0.96426117,2635.8,2635.6,0.01658008]
[1645369621412,0.00317704,2635.9,2635.6,0.01658008]
[1645369623271,0.00306862,2636.0,2635.9,0.00424874]
[1645369628118,0.30306862,2636.0,2635.9,0.00424874]
[1645369628316,1.746191,2636.0,2635.9,0.00424874]
[1645369628515,2.48866319,2636.0,2635.9,0.00424874]
[1645369628919,0.96958892,2636.0,2635.9,0.00424874]
[1645369629117,0.00584529,2636.0,2635.9,0.00424874]
[1645369633768,0.00811857,2636.0,2635.9,0.00424874]
[1645369638114,0.00811857,2636.0,2635.9,1.13338716]
[1645369640172,0.00811857,2636.0,2635.9,0.00424874]
[1645369644025,0.00263158,2636.3,2636.1,11.66]
[1645369644226,0.00263158,2636.3,2636.1,12.9609]
[1645369644423,0.00263158,2636.3,2636.2,1.0]
[1645369644924,2.9774,2636.8,2636.2,1.93715275]
[1645369645124,0.00204307,2636.4,2636.2,1.93715275]
[1645369645327,0.00204307,2636.4,2636.3,11.66]
[1645369645781,0.00204307,2636.4,2636.3,12.66]
[1645369645977,0.96374363,2637.0,2636.3,12.66]
[1645369646178,8.28374363,2637.1,2636.6,12.69576074]
[1645369646383,0.008171,2636.9,2636.7,1.0]
[1645369646777,3.06135859,2637.7,2637.6,1.1759992]
[1645369646980,3.06135859,2637.7,2637.6,0.83990228]
[1645369647179,1.92625859,2637.7,2637.6,0.83990228]
[1645369647781,12.32,2637.8,2636.4,0.93658671]
[1645369647978,1.92451468,2637.4,2636.4,0.93658671]
[1645369648176,2.31365471,2637.4,2636.4,0.93658671]
[1645369648776,2.31365471,2637.4,2636.2,1.0]
[1645369648977,0.00361804,2636.4,2636.2,1.0]
[1645369649378,0.00361804,2636.4,2636.1,5.5281]
[1645369650221,0.00361804,2636.4,2636.0,0.33692401]
[1645369650826,1.804e-05,2636.4,2636.0,5.33692401]
[1645369651026,1.804e-05,2636.4,2636.3,11.67246104]
[1645369651222,1.804e-05,2636.4,2636.3,24.5607998]
[1645369651419,1.804e-05,2636.4,2636.3,21.0607998]
[1645369651623,1.804e-05,2636.4,2636.3,20.7359]
[1645369651821,1.804e-05,2636.4,2636.3,20.5464]
[1645369653971,0.00328248,2636.4,2636.3,20.5464]
[1645369654571,0.00328248,2636.4,2636.3,8.8864]
[1645369655774,0.00328248,2636.4,2636.3,7.5864]
[1645369656177,0.00328248,2636.4,2636.3,8.5864]
[1645369656774,0.00328248,2636.4,2636.3,20.2464]
[1645369658830,0.00366795,2636.4,2636.3,20.2464]
[1645369659828,0.00366795,2636.4,2636.3,20.5464]
[1645369661484,0.00366795,2636.4,2636.3,20.8464]
[1645369662284,0.00366795,2636.4,2636.3,25.8464]
[1645369662783,6.795e-05,2636.4,2636.3,25.89957263]
[1645369662983,6.795e-05,2636.4,2636.3,27.51202269]
[1645369663185,6.795e-05,2636.4,2636.3,32.70152269]
[1645369663383,6.795e-05,2636.4,2636.3,32.84527325]
[1645369663682,0.19830703,2637.5,2636.3,27.84527325]
[1645369663882,0.19830703,2637.5,2636.5,11.66]
[1645369664088,0.04041613,2637.4,2637.2,1.0107298]
[1645369664283,0.13608408,2637.5,2637.2,12.80466255]
[1645369664540,0.03622357,2637.5,2637.4,11.66]
[1645369664729,1.49188064,2638.2,2637.6,11.66]
[1645369664930,0.05013785,2638.2,2637.6,11.66]
[1645369665124,0.05013785,2638.2,2637.6,12.26]
[1645369665324,2.11401468,2638.7,2638.0,1.15031393]
[1645369665325,1.44174279,2638.4,2638.0,1.15031393]
[1645369665925,1.44174279,2638.4,2637.8,11.66]
[1645369666124,1.34174279,2638.4,2637.8,11.66]
[1645369666326,1.34174279,2638.4,2637.9,11.66]
[1645369666526,1.92451468,2638.7,2637.9,11.66]
[1645369666731,0.1895,2638.8,2637.9,11.66]
[1645369666930,0.1895,2638.8,2638.1,11.66]
[1645369667125,0.1895,2638.8,2638.3,0.88248175]
[1645369667530,7.32,2638.9,2638.3,0.88248175]
[1645369668131,0.00200625,2638.7,2638.3,0.88248175]
[1645369668376,0.00200625,2638.7,2638.3,12.54248175]
[1645369668874,0.00426722,2639.1,2638.3,12.54248175]
[1645369669074,0.00200625,2638.6,2638.3,12.54248175]
[1645369669676,1.9148524,2639.3,2638.3,12.54248175]
[1645369669876,1.9148524,2639.3,2638.7,1.12781667]
[1645369670076,7.32,2639.4,2638.7,1.12781667]
[1645369670276,0.1894,2639.3,2638.7,1.12781667]
[1645369670674,0.1894,2639.3,2638.7,12.78781667]
[1645369670876,0.1894,2639.3,2638.7,1.12781667]
[1645369671075,0.1894,2639.3,2638.7,12.78781667]
[1645369671276,7.32,2639.4,2638.7,12.78781667]
[1645369672746,0.0025443,2639.2,2638.9,0.00190031]
[1645369673366,0.04833054,2639.8,2639.2,15.5]
[1645369673548,0.04833054,2639.8,2639.7,16.66]
[1645369673747,2.08,2640.0,2639.7,16.66]
[1645369673949,2.08,2640.0,2639.9,11.66]
[1645369674148,2.08,2640.0,2639.9,19.236]
[1645369674350,3.23e-05,2640.3,2639.9,24.24897808]
[1645369674562,0.5,2641.3,2640.3,11.66]
[1645369674747,1.42969622,2641.5,2640.3,11.66]
[1645369674945,1.42969622,2641.5,2640.6,11.66]
[1645369675347,1.42969622,2641.6,2640.6,11.66]
[1645369675646,7.32,2641.8,2640.4,7.5746]
[1645369676069,7.5092,2641.8,2640.5,11.66]
[1645369676271,8.93889622,2641.8,2640.4,7.5746]
[1645369676475,5.0,2641.6,2640.4,7.5746]
[1645369676673,5.0,2641.2,2640.4,7.5746]
[1645369677175,0.1892,2641.1,2640.4,7.5746]
[1645369677375,0.1892,2641.2,2640.4,7.5746]
[1645369677572,0.00263944,2640.9,2640.4,7.5746]
[1645369677774,5.1892,2641.2,2640.4,7.5746]
[1645369677775,0.14183944,2641.2,2640.4,8.64928492]
[1645369677973,0.14183944,2641.2,2640.4,7.5746]
[1645369678373,1.14183944,2641.2,2640.4,7.5746]
[1645369678575,0.14183944,2641.2,2640.4,7.5746]
[1645369678977,3.64183944,2641.2,2640.4,7.5746]
[1645369680421,5.0,2640.9,2640.4,7.5746]
[1645369680622,3.6892,2640.8,2640.4,7.5746]
[1645369681024,0.1892,2640.8,2640.4,7.5746]
[1645369681221,0.1892,2641.1,2640.4,7.5746]
[1645369681920,7.7018,2641.3,2640.4,7.5746]
[1645369681921,5.1892,2641.2,2640.4,7.5746]
[1645369682121,0.1892,2641.2,2640.4,7.5746]
[1645369682334,0.01296372,2640.6,2639.0,0.5671376]
[1645369682533,5.0,2639.4,2639.3,0.00224282]
[1645369682726,11.66,2639.7,2638.2,0.5]
[1645369682926,5.0,2639.1,2638.2,0.5]
[1645369683123,0.13819997,2639.0,2638.2,0.5]
[1645369683374,0.32759997,2639.0,2638.1,1.14463143]
[1645369683575,0.13819997,2639.0,2638.1,1.14463143]
[1645369684377,0.13819997,2639.0,2637.1,0.75198171]
[1645369684582,0.13819997,2639.0,2637.9,5.0]
[1645369684778,2.3399,2639.3,2638.0,0.01225413]
[1645369685178,2.3399,2639.3,2638.1,0.1894]
[1645369685377,2.3399,2639.3,2638.4,1.00753702]
[1645369685576,6.3768,2639.6,2638.8,1.14959012]
[1645369686177,6.3768,2639.6,2637.9,1.4894]
[1645369686577,6.3768,2639.6,2637.9,0.4894]
[1645369686777,6.3768,2639.6,2637.9,12.1494]
[1645369687223,3.69203885,2640.0,2639.2,0.86205394]
[1645369687427,0.00263885,2640.0,2639.2,0.86205394]
[1645369687627,3.50263885,2640.0,2639.2,0.86205394]
[1645369688024,3.50263885,2640.0,2638.7,0.1894]
[1645369688326,0.1894,2640.0,2638.2,0.55315603]
[1645369688524,0.1894,2640.0,2637.4,8.8664]
[1645369688525,5.0,2639.6,2637.9,0.1894]
[1645369688725,0.00267582,2639.2,2638.0,7.5815]
[1645369689326,0.00267582,2639.2,2638.3,1.02855756]
[1645369692086,0.00267582,2639.2,2638.6,0.00223775]
[1645369693176,0.00267582,2639.2,2638.0,7.5815]
[1645369693374,0.00267582,2639.2,2638.8,0.00223763]
[1645369693575,2.87105277,2639.5,2638.8,0.00223763]
[1645369694176,0.00315277,2639.5,2638.8,1.11405493]
[1645369694378,0.00315277,2639.5,2638.1,11.8494]
[1645369694627,0.00315277,2639.5,2639.0,0.00223741]
[1645369695424,0.00315277,2639.5,2638.5,1.03392577]
[1645369695725,0.00315277,2639.5,2639.1,0.00223733]
[1645369696728,0.00315277,2639.5,2638.1,0.1894]
[1645369696926,0.1894,2639.4,2639.2,0.00223729]
[1645369697829,5.1894,2639.4,2638.0,8.71319598]
[1645369698025,3.5,2639.3,2639.2,0.00223729]
[1645369698274,5.1894,2639.4,2639.2,0.00223729]
[1645369698472,3.5,2639.3,2639.2,0.00223729]
[1645369699074,3.5,2639.3,2638.0,8.71319598]
[1645369700480,3.5,2639.3,2638.0,7.5815]
[1645369700879,5.0,2639.1,2638.0,7.5815]
[1645369701083,3.5,2639.0,2638.0,7.5815]
[1645369701279,4.96401082,2639.0,2638.0,7.5815]
[1645369701478,5.0,2638.8,2638.0,7.5815]
[1645369701677,3.6895,2638.7,2638.0,7.5815]
[1645369701880,0.1895,2638.7,2638.0,7.5815]
[1645369702126,0.19013255,2638.6,2638.0,7.5815]
[1645369702324,5.0,2638.3,2638.0,7.5815]
[1645369702527,0.1895,2638.2,2638.0,7.5815]
[1645369702922,0.1895,2638.2,2636.6,1.56397781]
[1645369703136,0.94865,2638.1,2636.3,0.1895]
[1645369703323,3.6895,2638.0,2636.3,0.1895]
[1645369703732,3.6895,2638.0,2636.0,0.01132401]
[1645369703733,5.0,2637.0,2636.0,0.01132401]
[1645369703931,0.38611616,2637.9,2636.1,7.5858]
[1645369703932,3.5,2636.9,2636.1,7.5858]